[Event "Betsys MČR v online bleskovém šachu 2021"]
[Site "Chess.com"]
[Date "2021.04.17"]
[Round "6"]
[White "kubaches123"]
[Black "martin1804"]
[Result "1-0"]
[WhiteElo "2058"]
[BlackElo "2244"]
[TimeControl "180+1"]
[EndTime "9:57:54 PDT"]
[Termination "Uživatel kubaches123 zvítězil matem"]

1. d4 {[%clk 0:03:00.9]} 1... Nf6 {[%clk 0:02:57.8]} 2. c4 {[%clk 0:03:01.2]}
2... d6 {[%clk 0:02:57.3]} 3. Nf3 {[%clk 0:02:58.4]} 3... g6 {[%clk 0:02:53.9]}
4. g3 {[%clk 0:02:58]} 4... Bg7 {[%clk 0:02:53.4]} 5. Bg2 {[%clk 0:02:58.6]}
5... O-O {[%clk 0:02:50.3]} 6. O-O {[%clk 0:02:59.2]} 6... Nc6 {[%clk
0:02:50.1]} 7. Nc3 {[%clk 0:02:59.5]} 7... a6 {[%clk 0:02:41]} 8. b3 {[%clk
0:02:54.4]} 8... Rb8 {[%clk 0:02:39.6]} 9. Bb2 {[%clk 0:02:54.7]} 9... Bd7
{[%clk 0:02:37.5]} 10. Rc1 {[%clk 0:02:47.7]} 10... b5 {[%clk 0:02:33.2]} 11.
cxb5 {[%clk 0:02:47.6]} 11... axb5 {[%clk 0:02:34.1]} 12. d5 {[%clk 0:02:46.7]}
12... Na5 {[%clk 0:02:30.4]} 13. Nd4 {[%clk 0:02:44.5]} 13... b4 {[%clk
0:02:14.1]} 14. Nb1 {[%clk 0:02:39.4]} 14... e5 {[%clk 0:01:56.3]} 15. Nc6
{[%clk 0:02:10.8]} 15... Nxc6 {[%clk 0:01:53.9]} 16. dxc6 {[%clk 0:02:11.7]}
16... Be6 {[%clk 0:01:53.3]} 17. Nd2 {[%clk 0:02:11.9]} 17... Ra8 {[%clk
0:01:52.9]} 18. Ra1 {[%clk 0:01:55.5]} 18... Nd5 {[%clk 0:01:48.1]} 19. Nc4
{[%clk 0:01:29.5]} 19... Nc3 {[%clk 0:01:44.9]} 20. Qc2 {[%clk 0:01:23.6]} 20...
d5 {[%clk 0:01:37.6]} 21. Ne3 {[%clk 0:01:07.3]} 21... d4 {[%clk 0:01:32]} 22.
Nc4 {[%clk 0:01:02.5]} 22... f5 {[%clk 0:01:12.7]} 23. a3 {[%clk 0:00:57.1]}
23... Bd5 {[%clk 0:00:50.2]} 24. axb4 {[%clk 0:00:41.2]} 24... Bxg2 {[%clk
0:00:48.2]} 25. Kxg2 {[%clk 0:00:42.1]} 25... Qd5+ {[%clk 0:00:48.3]} 26. Kg1
{[%clk 0:00:42.7]} 26... Ne4 {[%clk 0:00:43.1]} 27. Na5 {[%clk 0:00:20.1]} 27...
Ng5 {[%clk 0:00:42]} 28. h4 {[%clk 0:00:17.3]} 28... Ne6 {[%clk 0:00:36.4]} 29.
Qc4 {[%clk 0:00:17.1]} 29... Qd6 {[%clk 0:00:32.3]} 30. b5 {[%clk 0:00:17.3]}
30... Kh8 {[%clk 0:00:29.9]} 31. Ba3 {[%clk 0:00:16.2]} 31... Qd8 {[%clk
0:00:25]} 32. Qxe6 {[%clk 0:00:16.2]} 32... Re8 {[%clk 0:00:24.7]} 33. Qc4
{[%clk 0:00:12.5]} 33... f4 {[%clk 0:00:25.6]} 34. Nb7 {[%clk 0:00:11.6]} 34...
Qf6 {[%clk 0:00:24.7]} 35. Bb2 {[%clk 0:00:09.8]} 35... fxg3 {[%clk 0:00:24.6]}
36. fxg3 {[%clk 0:00:10.7]} 36... Qe7 {[%clk 0:00:23.7]} 37. Rxa8 {[%clk
0:00:10.8]} 37... Rxa8 {[%clk 0:00:24]} 38. b6 {[%clk 0:00:10.7]} 38... Re8
{[%clk 0:00:24.3]} 39. bxc7 {[%clk 0:00:10.8]} 39... Qxc7 {[%clk 0:00:25.2]} 40.
b4 {[%clk 0:00:11]} 40... e4 {[%clk 0:00:21.9]} 41. Rf4 {[%clk 0:00:11.3]} 41...
Be5 {[%clk 0:00:20.5]} 42. Bxd4 {[%clk 0:00:10.5]} 42... Bxd4+ {[%clk
0:00:19.5]} 43. Qxd4+ {[%clk 0:00:11.4]} 43... Kg8 {[%clk 0:00:19.9]} 44. b5
{[%clk 0:00:11.9]} 44... Qb8 {[%clk 0:00:19.2]} 45. Rxe4 {[%clk 0:00:12.2]}
45... Rf8 {[%clk 0:00:18.8]} 46. Qc4+ {[%clk 0:00:12.5]} 46... Kg7 {[%clk
0:00:17.9]} 47. Re7+ {[%clk 0:00:12.2]} 47... Kh6 {[%clk 0:00:15.9]} 48. Qc1+
{[%clk 0:00:11.6]} 48... Kh5 {[%clk 0:00:15.5]} 49. Qg5# {[%clk 0:00:11.7]} 1-0

[Event "Betsys MČR v online bleskovém šachu 2021"]
[Site "Chess.com"]
[Date "2021.04.17"]
[Round "6"]
[White "VeceraP1973"]
[Black "YoungMegaMind"]
[Result "1/2-1/2"]
[WhiteElo "1921"]
[BlackElo "2215"]
[TimeControl "180+1"]
[EndTime "9:57:54 PDT"]
[Termination "Remíza – nedostatek materiálu"]

1. e4 {[%clk 0:03:00.9]} 1... c6 {[%clk 0:02:38.4]} 2. d4 {[%clk 0:03:00.2]}
2... d5 {[%clk 0:02:38.7]} 3. exd5 {[%clk 0:03:00.3]} 3... cxd5 {[%clk
0:02:38.7]} 4. c4 {[%clk 0:03:00.2]} 4... Nf6 {[%clk 0:02:38.1]} 5. Nc3 {[%clk
0:03:00.1]} 5... Nc6 {[%clk 0:02:36.6]} 6. Bg5 {[%clk 0:02:59.1]} 6... dxc4
{[%clk 0:02:28.9]} 7. Bxc4 {[%clk 0:02:57.1]} 7... e6 {[%clk 0:02:27.3]} 8. Nf3
{[%clk 0:02:55.6]} 8... Bb4 {[%clk 0:02:26]} 9. O-O {[%clk 0:02:52.2]} 9... h6
{[%clk 0:02:24.1]} 10. Bh4 {[%clk 0:02:49.2]} 10... Bxc3 {[%clk 0:02:15.9]} 11.
bxc3 {[%clk 0:02:48.4]} 11... O-O {[%clk 0:02:15.5]} 12. Re1 {[%clk 0:02:38.1]}
12... a6 {[%clk 0:02:14.9]} 13. Qd3 {[%clk 0:02:35.5]} 13... b5 {[%clk
0:02:14.5]} 14. Bb3 {[%clk 0:02:34.8]} 14... g6 {[%clk 0:01:57.9]} 15. Rad1
{[%clk 0:02:31.9]} 15... Kg7 {[%clk 0:01:56.9]} 16. d5 {[%clk 0:02:28.5]} 16...
exd5 {[%clk 0:01:54]} 17. Bxd5 {[%clk 0:02:27.6]} 17... Bf5 {[%clk 0:01:51.7]}
18. Qd2 {[%clk 0:02:12]} 18... Rc8 {[%clk 0:01:29.1]} 19. c4 {[%clk 0:02:02.1]}
19... bxc4 {[%clk 0:01:26.2]} 20. Qc3 {[%clk 0:02:00.4]} 20... g5 {[%clk
0:01:20.4]} 21. Nxg5 {[%clk 0:01:55.1]} 21... hxg5 {[%clk 0:01:12.3]} 22. Bxg5
{[%clk 0:01:51.6]} 22... Nb8 {[%clk 0:01:07.7]} 23. Bxf7 {[%clk 0:01:37.2]}
23... Qb6 {[%clk 0:01:07.2]} 24. Bd5 {[%clk 0:01:19.5]} 24... Rce8 {[%clk
0:01:02.5]} 25. Qg3 {[%clk 0:01:06.8]} 25... Bg6 {[%clk 0:00:59.3]} 26. Rxe8
{[%clk 0:00:58.3]} 26... Rxe8 {[%clk 0:00:57]} 27. Bxc4 {[%clk 0:00:57.3]} 27...
Nbd7 {[%clk 0:00:54.3]} 28. Bf1 {[%clk 0:00:53.7]} 28... Ne5 {[%clk 0:00:51.6]}
29. h4 {[%clk 0:00:52.2]} 29... Nf7 {[%clk 0:00:50.6]} 30. Bxf6+ {[%clk
0:00:49.6]} 30... Kxf6 {[%clk 0:00:49.4]} 31. Qc3+ {[%clk 0:00:46.3]} 31... Ne5
{[%clk 0:00:45]} 32. Kh2 {[%clk 0:00:36]} 32... Kf7 {[%clk 0:00:37.7]} 33. Bc4+
{[%clk 0:00:34.2]} 33... Nxc4 {[%clk 0:00:36.6]} 34. Qxc4+ {[%clk 0:00:33.8]}
34... Kf8 {[%clk 0:00:28.4]} 35. Qf4+ {[%clk 0:00:31.4]} 35... Kg8 {[%clk
0:00:27.2]} 36. g4 {[%clk 0:00:29.3]} 36... Qb8 {[%clk 0:00:26.7]} 37. Qxb8
{[%clk 0:00:27.1]} 37... Rxb8 {[%clk 0:00:26.4]} 38. Rd6 {[%clk 0:00:26.2]}
38... Bf7 {[%clk 0:00:20.4]} 39. Rxa6 {[%clk 0:00:26.1]} 39... Rb2 {[%clk
0:00:20.4]} 40. Kg3 {[%clk 0:00:26]} 40... Bxa2 {[%clk 0:00:19.7]} 41. Ra7
{[%clk 0:00:24.1]} 41... Bd5 {[%clk 0:00:18.2]} 42. g5 {[%clk 0:00:22.4]} 42...
Bf7 {[%clk 0:00:17.7]} 43. Kf4 {[%clk 0:00:20.9]} 43... Rb4+ {[%clk 0:00:17.7]}
44. Ke5 {[%clk 0:00:20.3]} 44... Rxh4 {[%clk 0:00:17.7]} 45. f4 {[%clk
0:00:18.8]} 45... Rg4 {[%clk 0:00:15.8]} 46. Kf5 {[%clk 0:00:17.2]} 46... Rh4
{[%clk 0:00:16]} 47. g6 {[%clk 0:00:15.1]} 47... Bxg6+ {[%clk 0:00:15.9]} 48.
Kxg6 {[%clk 0:00:14.7]} 48... Rxf4 {[%clk 0:00:16.2]} 49. Ra8+ {[%clk
0:00:14.4]} 49... Rf8 {[%clk 0:00:16.3]} 50. Rxf8+ {[%clk 0:00:14.3]} 50... Kxf8
{[%clk 0:00:17.2]} 1/2-1/2

[Event "Betsys MČR v online bleskovém šachu 2021"]
[Site "Chess.com"]
[Date "2021.04.17"]
[Round "6"]
[White "Innerz98"]
[Black "matyson523"]
[Result "1-0"]
[WhiteElo "2109"]
[BlackElo "1807"]
[TimeControl "180+1"]
[EndTime "9:57:55 PDT"]
[Termination "Uživatel Innerz98 zvítězil matem"]

1. d4 {[%clk 0:03:00.9]} 1... d5 {[%clk 0:02:59.9]} 2. Bf4 {[%clk 0:02:56.9]}
2... e6 {[%clk 0:02:59.9]} 3. e3 {[%clk 0:02:56.8]} 3... Nf6 {[%clk 0:03:00.1]}
4. Bd3 {[%clk 0:02:56.1]} 4... Bd6 {[%clk 0:03:00.6]} 5. Bg3 {[%clk 0:02:55.9]}
5... c5 {[%clk 0:02:59.4]} 6. c3 {[%clk 0:02:55.8]} 6... Nc6 {[%clk 0:02:59.6]}
7. Nf3 {[%clk 0:02:56.2]} 7... O-O {[%clk 0:02:59.7]} 8. Nbd2 {[%clk 0:02:55.9]}
8... b6 {[%clk 0:02:58]} 9. Ne5 {[%clk 0:02:55.7]} 9... Bb7 {[%clk 0:02:56.8]}
10. f4 {[%clk 0:02:56]} 10... Ne7 {[%clk 0:02:52.5]} 11. O-O {[%clk 0:02:52.7]}
11... Nf5 {[%clk 0:02:51.9]} 12. Bf2 {[%clk 0:02:52.1]} 12... Be7 {[%clk
0:02:48.3]} 13. g4 {[%clk 0:02:49]} 13... Nd6 {[%clk 0:02:48.2]} 14. Bh4 {[%clk
0:02:34]} 14... Nfe4 {[%clk 0:02:45.8]} 15. Bxe7 {[%clk 0:02:33.8]} 15... Qxe7
{[%clk 0:02:45.9]} 16. Nxe4 {[%clk 0:02:33.2]} 16... Nxe4 {[%clk 0:02:46.2]} 17.
Qe2 {[%clk 0:02:26.7]} 17... Qh4 {[%clk 0:02:43.3]} 18. Rf3 {[%clk 0:02:22.1]}
18... Qe7 {[%clk 0:02:33.1]} 19. Rh3 {[%clk 0:02:13.6]} 19... f6 {[%clk
0:02:32]} 20. Nf3 {[%clk 0:02:11.6]} 20... Qf7 {[%clk 0:02:27.4]} 21. Rf1 {[%clk
0:02:03.9]} 21... Qg6 {[%clk 0:02:23]} 22. Qg2 {[%clk 0:01:57.5]} 22... Rac8
{[%clk 0:02:11.9]} 23. Kh1 {[%clk 0:01:56.8]} 23... Qf7 {[%clk 0:02:08.2]} 24.
Nd2 {[%clk 0:01:52.2]} 24... f5 {[%clk 0:01:57.6]} 25. g5 {[%clk 0:01:41.4]}
25... g6 {[%clk 0:01:32.2]} 26. Rh6 {[%clk 0:01:37.2]} 26... Rc7 {[%clk
0:01:30.7]} 27. Nf3 {[%clk 0:01:35]} 27... cxd4 {[%clk 0:01:21.8]} 28. exd4
{[%clk 0:01:35.9]} 28... Qe7 {[%clk 0:01:19.1]} 29. Ne5 {[%clk 0:01:33.9]} 29...
Qd6 {[%clk 0:01:18.5]} 30. h4 {[%clk 0:01:23.1]} 30... Kg7 {[%clk 0:01:15.4]}
31. h5 {[%clk 0:01:23.1]} 31... Rh8 {[%clk 0:01:08.5]} 32. hxg6 {[%clk 0:01:17]}
32... hxg6 {[%clk 0:01:08]} 33. Rxh8 {[%clk 0:01:15.8]} 33... Kxh8 {[%clk
0:01:07.7]} 34. Nxg6+ {[%clk 0:01:15]} 34... Kg7 {[%clk 0:01:04.7]} 35. Ne5
{[%clk 0:01:12.9]} 35... Rc8 {[%clk 0:01:04]} 36. Rf3 {[%clk 0:01:12.3]} 36...
Rh8+ {[%clk 0:01:02.9]} 37. Kg1 {[%clk 0:01:11.5]} 37... b5 {[%clk 0:00:57.3]}
38. Rh3 {[%clk 0:01:06.3]} 38... Qf8 {[%clk 0:00:45.3]} 39. Bxb5 {[%clk
0:00:59.6]} 39... a6 {[%clk 0:00:29.1]} 40. Bd7 {[%clk 0:00:50.1]} 40... Bc8
{[%clk 0:00:28.7]} 41. Ba4 {[%clk 0:00:26.8]} 41... Qd8 {[%clk 0:00:26]} 42. Nc6
{[%clk 0:00:19.5]} 42... Qf8 {[%clk 0:00:23.9]} 43. Ne5 {[%clk 0:00:18.1]} 43...
Qd8 {[%clk 0:00:23]} 44. Bc2 {[%clk 0:00:17.6]} 44... Qf8 {[%clk 0:00:19.8]} 45.
g6 {[%clk 0:00:15.2]} 45... Qd8 {[%clk 0:00:16]} 46. Rh7+ {[%clk 0:00:11.5]}
46... Rxh7 {[%clk 0:00:12.2]} 47. gxh7+ {[%clk 0:00:12.4]} 47... Kxh7 {[%clk
0:00:12.2]} 48. Qg6+ {[%clk 0:00:12.1]} 48... Kh8 {[%clk 0:00:12.6]} 49. Nf7#
{[%clk 0:00:13]} 1-0

[Event "Betsys MČR v online bleskovém šachu 2021"]
[Site "Chess.com"]
[Date "2021.04.17"]
[Round "6"]
[White "KJ327NR"]
[Black "BetsysBetting"]
[Result "1-0"]
[WhiteElo "2320"]
[BlackElo "1958"]
[TimeControl "180+1"]
[EndTime "9:57:58 PDT"]
[Termination "Uživatel KJ327NR zvítězil na čas"]

1. e4 {[%clk 0:03:00.9]} 1... d6 {[%clk 0:02:55.9]} 2. d4 {[%clk 0:02:58.4]}
2... Nf6 {[%clk 0:02:55.7]} 3. Nc3 {[%clk 0:02:58.1]} 3... c6 {[%clk 0:02:54.8]}
4. a4 {[%clk 0:02:52.9]} 4... Nbd7 {[%clk 0:02:50.6]} 5. Nf3 {[%clk 0:02:52.1]}
5... e5 {[%clk 0:02:50.5]} 6. Bc4 {[%clk 0:02:51.5]} 6... Be7 {[%clk 0:02:49.7]}
7. O-O {[%clk 0:02:49.3]} 7... a5 {[%clk 0:02:48.7]} 8. Re1 {[%clk 0:02:44.8]}
8... O-O {[%clk 0:02:47.3]} 9. Bg5 {[%clk 0:02:42.3]} 9... Nh5 {[%clk
0:02:26.6]} 10. Bxe7 {[%clk 0:02:37.9]} 10... Qxe7 {[%clk 0:02:26.1]} 11. dxe5
{[%clk 0:02:34.2]} 11... dxe5 {[%clk 0:02:21.5]} 12. Ne2 {[%clk 0:02:15.9]}
12... Nb6 {[%clk 0:01:53.2]} 13. Bb3 {[%clk 0:02:07.2]} 13... Bg4 {[%clk
0:01:52.7]} 14. Ng3 {[%clk 0:02:01.9]} 14... Rad8 {[%clk 0:01:42.7]} 15. Qe2
{[%clk 0:01:57.8]} 15... Nf4 {[%clk 0:01:11]} 16. Qe3 {[%clk 0:01:55.1]} 16...
Bxf3 {[%clk 0:00:45.9]} 17. Qxf3 {[%clk 0:01:54]} 17... Rd2 {[%clk 0:00:35.3]}
18. Rad1 {[%clk 0:00:46.7]} 18... Rfd8 {[%clk 0:00:29.9]} 19. Rxd2 {[%clk
0:00:46.2]} 19... Rxd2 {[%clk 0:00:29.7]} 20. Qe3 {[%clk 0:00:20.3]} 20... Qd8
{[%clk 0:00:29.2]} 21. Nf5 {[%clk 0:00:15.9]} 21... g6 {[%clk 0:00:18.7]} 22.
Ne7+ {[%clk 0:00:15.3]} 22... Kg7 {[%clk 0:00:15.9]} 23. Nd5 {[%clk 0:00:15.3]}
23... Qg5 {[%clk 0:00:07.1]} 24. Nxf4 {[%clk 0:00:14.7]} 24... exf4 {[%clk
0:00:04.7]} 25. Qxd2 {[%clk 0:00:14.1]} 25... h5 {[%clk 0:00:04.6]} 26. f3
{[%clk 0:00:13.7]} 26... h4 {[%clk 0:00:04.3]} 27. Qd4+ {[%clk 0:00:13.6]} 27...
Kh6 {[%clk 0:00:04.2]} 28. Qxb6 {[%clk 0:00:12.8]} 28... h3 {[%clk 0:00:04.8]}
29. Qf2 {[%clk 0:00:12.5]} 29... hxg2 {[%clk 0:00:04.1]} 30. Qxg2 {[%clk
0:00:12.5]} 30... Qh4 {[%clk 0:00:05]} 31. Rf1 {[%clk 0:00:12.1]} 31... Kg7
{[%clk 0:00:03.9]} 32. Qg4 {[%clk 0:00:11.9]} 32... Qh6 {[%clk 0:00:04.1]} 33.
e5 {[%clk 0:00:11.3]} 33... b6 {[%clk 0:00:02.9]} 34. e6 {[%clk 0:00:11.3]}
34... fxe6 {[%clk 0:00:02.8]} 35. Qxe6 {[%clk 0:00:09.9]} 35... Qg5+ {[%clk
0:00:03.1]} 36. Kh1 {[%clk 0:00:09.4]} 36... Qc5 {[%clk 0:00:01.5]} 37. Qg8+
{[%clk 0:00:08.9]} 37... Kh6 {[%clk 0:00:01.6]} 38. Qh8+ {[%clk 0:00:08.7]}
38... Kg5 {[%clk 0:00:01.3]} 39. Rg1+ {[%clk 0:00:08.8]} 39... Kf5 {[%clk
0:00:01.6]} 40. Qc3 {[%clk 0:00:05.4]} 1-0

[Event "Betsys MČR v online bleskovém šachu 2021"]
[Site "Chess.com"]
[Date "2021.04.17"]
[Round "6"]
[White "phil3"]
[Black "CZMaster666"]
[Result "0-1"]
[WhiteElo "2135"]
[BlackElo "1895"]
[TimeControl "180+1"]
[EndTime "9:57:59 PDT"]
[Termination "Uživatel CZMaster666 zvítězil po vzdání soupeře"]

1. e4 {[%clk 0:03:00.9]} 1... e5 {[%clk 0:02:59.7]} 2. Nf3 {[%clk 0:02:59.7]}
2... Nc6 {[%clk 0:03:00]} 3. Nc3 {[%clk 0:02:58.1]} 3... Nf6 {[%clk 0:02:59.7]}
4. d4 {[%clk 0:02:58]} 4... exd4 {[%clk 0:03:00.2]} 5. Nxd4 {[%clk 0:02:58.3]}
5... Bb4 {[%clk 0:03:00.3]} 6. Nxc6 {[%clk 0:02:58.6]} 6... bxc6 {[%clk
0:03:01.2]} 7. Bd3 {[%clk 0:02:57.4]} 7... d5 {[%clk 0:03:00]} 8. exd5 {[%clk
0:02:57.4]} 8... cxd5 {[%clk 0:03:00.9]} 9. O-O {[%clk 0:02:57.2]} 9... O-O
{[%clk 0:03:00.5]} 10. h3 {[%clk 0:02:56.9]} 10... c6 {[%clk 0:02:58.7]} 11. Bf4
{[%clk 0:02:56.2]} 11... Bd6 {[%clk 0:02:57.1]} 12. Qf3 {[%clk 0:02:55.9]} 12...
Re8 {[%clk 0:02:49.5]} 13. Rfe1 {[%clk 0:02:51.5]} 13... Be6 {[%clk 0:02:49.4]}
14. Ne2 {[%clk 0:02:50.5]} 14... c5 {[%clk 0:02:47.7]} 15. c3 {[%clk 0:02:50.1]}
15... Rb8 {[%clk 0:02:42.9]} 16. b3 {[%clk 0:02:49.5]} 16... Qb6 {[%clk
0:02:15.9]} 17. Ng3 {[%clk 0:02:42.2]} 17... Bxf4 {[%clk 0:02:03.9]} 18. Qxf4
{[%clk 0:02:41.8]} 18... Bd7 {[%clk 0:02:02.7]} 19. Bf5 {[%clk 0:02:28.3]} 19...
Bc6 {[%clk 0:01:51.6]} 20. Bc2 {[%clk 0:02:25.3]} 20... a5 {[%clk 0:01:28.5]}
21. Nf5 {[%clk 0:02:24.5]} 21... Re6 {[%clk 0:01:07.1]} 22. Qg5 {[%clk 0:01:40]}
22... Ne8 {[%clk 0:00:39.3]} 23. Rxe6 {[%clk 0:01:32.1]} 23... fxe6 {[%clk
0:00:40.2]} 24. Nh6+ {[%clk 0:01:15.4]} 24... Kh8 {[%clk 0:00:33.9]} 25. Nf7+
{[%clk 0:01:13.8]} 25... Kg8 {[%clk 0:00:32.9]} 26. Qh5 {[%clk 0:00:37.6]} 26...
Nf6 {[%clk 0:00:25.9]} 27. Nh6+ {[%clk 0:00:34.5]} 27... gxh6 {[%clk 0:00:23.2]}
28. Qe5 {[%clk 0:00:34.5]} 28... Kf7 {[%clk 0:00:20.4]} 29. Re1 {[%clk
0:00:34.3]} 29... Bd7 {[%clk 0:00:20.5]} 30. Re3 {[%clk 0:00:31.6]} 30... Rg8
{[%clk 0:00:19.6]} 31. Rf3 {[%clk 0:00:29.7]} 31... Qd8 {[%clk 0:00:19.8]} 32.
Bxh7 {[%clk 0:00:28.2]} 32... Rg5 {[%clk 0:00:19.1]} 33. Qd6 {[%clk 0:00:22.9]}
33... Qe7 {[%clk 0:00:19.5]} 34. Qc7 {[%clk 0:00:15.9]} 34... e5 {[%clk
0:00:17.5]} 35. h4 {[%clk 0:00:13]} 35... Rg4 {[%clk 0:00:15.2]} 36. h5 {[%clk
0:00:07.2]} 36... e4 {[%clk 0:00:14.6]} 37. Bg6+ {[%clk 0:00:07.3]} 37... Kg7
{[%clk 0:00:12.2]} 38. Rh3 {[%clk 0:00:05.4]} 38... e3 {[%clk 0:00:08.3]} 39.
Rxe3 {[%clk 0:00:04.4]} 39... Ne4 {[%clk 0:00:08.6]} 40. Bxe4 {[%clk 0:00:03.4]}
40... Rxe4 {[%clk 0:00:09.5]} 41. Rg3+ {[%clk 0:00:02.9]} 41... Kh7 {[%clk
0:00:09.1]} 42. Qxc5 {[%clk 0:00:01.1]} 42... Re1+ {[%clk 0:00:09.1]} 43. Kh2
{[%clk 0:00:01.2]} 43... Qxc5 {[%clk 0:00:09.3]} 0-1

[Event "Betsys MČR v online bleskovém šachu 2021"]
[Site "Chess.com"]
[Date "2021.04.17"]
[Round "6"]
[White "petr812"]
[Black "BRNOTEACHER"]
[Result "1-0"]
[WhiteElo "2148"]
[BlackElo "2336"]
[TimeControl "180+1"]
[EndTime "9:58:00 PDT"]
[Termination "Uživatel petr812 zvítězil po vzdání soupeře"]

1. e4 {[%clk 0:03:00.9]} 1... c6 {[%clk 0:02:59.7]} 2. d4 {[%clk 0:02:59.9]}
2... d5 {[%clk 0:03:00.6]} 3. exd5 {[%clk 0:02:58.6]} 3... cxd5 {[%clk
0:03:01.5]} 4. Nf3 {[%clk 0:02:58.3]} 4... Nc6 {[%clk 0:03:00.9]} 5. Nc3 {[%clk
0:02:55.4]} 5... Bg4 {[%clk 0:02:58.6]} 6. Be2 {[%clk 0:02:55.2]} 6... e6 {[%clk
0:02:57.4]} 7. O-O {[%clk 0:02:54.7]} 7... Bd6 {[%clk 0:02:56.4]} 8. Be3 {[%clk
0:02:53.1]} 8... Nge7 {[%clk 0:02:51.1]} 9. h3 {[%clk 0:02:47.3]} 9... Bh5
{[%clk 0:02:50.5]} 10. Qd2 {[%clk 0:02:46.3]} 10... f6 {[%clk 0:02:39.7]} 11.
Bf4 {[%clk 0:02:44.2]} 11... e5 {[%clk 0:02:30]} 12. dxe5 {[%clk 0:02:42.4]}
12... fxe5 {[%clk 0:02:30.9]} 13. Nxe5 {[%clk 0:02:31.4]} 13... Nxe5 {[%clk
0:01:56.4]} 14. Bxh5+ {[%clk 0:02:24.4]} 14... g6 {[%clk 0:01:52.1]} 15. Bxe5
{[%clk 0:02:23.9]} 15... Bxe5 {[%clk 0:01:52.9]} 16. Bf3 {[%clk 0:02:23]} 16...
Bxc3 {[%clk 0:01:48.8]} 17. Qxc3 {[%clk 0:02:20.1]} 17... O-O {[%clk 0:01:47.1]}
18. Rad1 {[%clk 0:02:16.3]} 18... Rc8 {[%clk 0:01:44.9]} 19. Qd3 {[%clk
0:02:14.3]} 19... Qa5 {[%clk 0:01:32.6]} 20. Rfe1 {[%clk 0:02:08.9]} 20... Rf7
{[%clk 0:01:28.3]} 21. Bg4 {[%clk 0:01:37.3]} 21... Nf5 {[%clk 0:01:18.8]} 22.
c3 {[%clk 0:01:23]} 22... Qxa2 {[%clk 0:01:11.3]} 23. Qxd5 {[%clk 0:01:17.4]}
23... Qxd5 {[%clk 0:01:09.5]} 24. Rxd5 {[%clk 0:01:16.2]} 24... Rcf8 {[%clk
0:01:08]} 25. Bxf5 {[%clk 0:01:12.2]} 25... Rxf5 {[%clk 0:01:07.3]} 26. Rd7
{[%clk 0:01:09.3]} 26... Rxf2 {[%clk 0:00:55.3]} 27. Ree7 {[%clk 0:01:06.6]}
27... Rf1+ {[%clk 0:00:42.4]} 28. Kh2 {[%clk 0:01:05.6]} 28... R8f7 {[%clk
0:00:39.9]} 29. Rxb7 {[%clk 0:01:03]} 29... Rxe7 {[%clk 0:00:37.3]} 30. Rxe7
{[%clk 0:01:02.1]} 30... a5 {[%clk 0:00:35.2]} 31. Rb7 {[%clk 0:00:58.4]} 31...
Rb1 {[%clk 0:00:30.9]} 32. Kg3 {[%clk 0:00:57.2]} 32... a4 {[%clk 0:00:30.9]}
33. Rb4 {[%clk 0:00:55.8]} 33... Ra1 {[%clk 0:00:25.9]} 34. Kf4 {[%clk
0:00:53.8]} 34... a3 {[%clk 0:00:26]} 35. bxa3 {[%clk 0:00:52.4]} 35... Rxa3
{[%clk 0:00:26.9]} 36. c4 {[%clk 0:00:51.5]} 36... Rc3 {[%clk 0:00:20.1]} 37.
Ke4 {[%clk 0:00:48.5]} 37... Rc2 {[%clk 0:00:19.5]} 38. g4 {[%clk 0:00:46.9]}
38... Kf7 {[%clk 0:00:17.9]} 39. Kd5 {[%clk 0:00:44.2]} 39... Kf6 {[%clk
0:00:16.3]} 40. Rb3 {[%clk 0:00:42.1]} 40... Kg5 {[%clk 0:00:13]} 41. c5 {[%clk
0:00:40.1]} 41... Rd2+ {[%clk 0:00:11.3]} 42. Ke4 {[%clk 0:00:37.5]} 42... Rc2
{[%clk 0:00:10.7]} 43. Kd4 {[%clk 0:00:36.2]} 43... Kf6 {[%clk 0:00:10.9]} 44.
Rc3 {[%clk 0:00:34.2]} 44... Rd2+ {[%clk 0:00:11]} 45. Ke4 {[%clk 0:00:32.2]}
45... Ke7 {[%clk 0:00:09.9]} 46. c6 {[%clk 0:00:31.9]} 46... Rd8 {[%clk
0:00:09]} 47. c7 {[%clk 0:00:30.9]} 47... Rc8 {[%clk 0:00:08.6]} 48. Ke5 {[%clk
0:00:30.3]} 48... Kd7 {[%clk 0:00:05.7]} 49. Kf6 {[%clk 0:00:29.2]} 49... Rxc7
{[%clk 0:00:01.9]} 50. Rxc7+ {[%clk 0:00:28]} 50... Kxc7 {[%clk 0:00:02.8]} 1-0